bitfinex/quotes_SOLUSD_20250106
["timestamp","ask_amount","ask_price","bid_price","bid_amount"]
[1736185369122,3.08,217.81,217.76,22.28276381]
[1736185369691,3.08,217.81,217.75,22.28276381]
[1736185370498,22.28276381,217.78,217.71,22.28276381]
[1736185370696,22.28276381,217.75,217.68,22.28276381]
[1736185371089,22.28276381,217.76,217.69,22.28276381]
[1736185371289,22.28276381,217.75,217.69,22.28276381]
[1736185371490,22.28276381,217.76,217.69,22.28276381]
[1736185371686,0.12549,217.8,217.64,1.6522]
[1736185371687,22.28276381,217.71,217.64,1.6522]
[1736185371923,22.28276381,217.69,217.62,22.28276381]
[1736185372395,22.28276381,217.66,217.59,23.81546381]
[1736185372788,22.28276381,217.67,217.6,22.28276381]
[1736185373896,22.28276381,217.66,217.59,23.81546381]
[1736185374115,22.28276381,217.68,217.61,22.28276381]
[1736185374313,22.28276381,217.67,217.61,22.28276381]
[1736185374504,22.28276381,217.67,217.6,22.28276381]
[1736185374690,22.28276381,217.68,217.61,22.28276381]
[1736185375119,22.28276381,217.67,217.61,22.28276381]
[1736185375311,22.28276381,217.67,217.6,22.28276381]
[1736185375519,3.08,217.7,217.59,23.81546381]
[1736185375520,22.28276381,217.65,217.59,23.81546381]
[1736185375818,22.28276381,217.66,217.59,23.81546381]
[1736185376205,22.28276381,217.65,217.59,23.81546381]
[1736185376408,22.28276381,217.65,217.58,22.32769363]
[1736185376603,3.08,217.7,217.58,0.04492982]
[1736185376604,22.28276381,217.64,217.58,0.04492982]
[1736185377198,22.28276381,217.63,217.58,0.04492982]
[1736185378626,22.28276381,217.67,217.61,22.28276381]
[1736185379618,22.28276381,217.67,217.58,0.04492982]
[1736185379619,3.08,217.66,217.62,22.28276381]
[1736185379805,3.08,217.66,217.61,22.28276381]
[1736185380217,22.28276381,217.68,217.61,22.28276381]
[1736185380523,25.36276381,217.67,217.61,22.28276381]
[1736185381105,3.08,217.67,217.62,22.28276381]
[1736185381434,25.36276381,217.67,217.61,22.28276381]
[1736185381605,22.28276381,217.64,217.58,22.32769363]
[1736185381810,22.28276381,217.63,217.58,0.04492982]
[1736185382643,22.28276381,217.66,217.6,22.28276381]
[1736185382809,25.36276381,217.67,217.61,22.28276381]
[1736185383218,3.08,217.67,217.61,22.28276381]
[1736185383465,3.08,217.67,217.63,22.28276381]
[1736185383609,22.28276381,217.72,217.66,22.28276381]
[1736185383940,3.08,217.72,217.66,22.28276381]
[1736185384120,3.08,217.72,217.69,22.28276381]
[1736185384627,19.5092,217.8,217.71,22.28276381]
[1736185384628,3.08,217.75,217.71,22.28276381]
[1736185384824,3.08,217.75,217.69,22.28276381]
[1736185384825,25.36276381,217.75,217.69,22.28276381]
[1736185385220,25.36276381,217.75,217.63,22.28276381]
[1736185385221,22.28276381,217.7,217.63,22.28276381]
[1736185385434,0.12549,217.74,217.6,1.5231]
[1736185385435,22.28276381,217.68,217.62,22.28276381]
[1736185385716,22.28276381,217.68,217.61,22.28276381]
[1736185386027,22.28276381,217.68,217.62,22.28276381]
[1736185386547,22.28276381,217.69,217.63,22.28276381]
[1736185386730,22.28276381,217.69,217.6,1.5231]
[1736185386731,22.28276381,217.68,217.61,22.28276381]
[1736185386937,22.28276381,217.67,217.6,23.80586381]
[1736185387733,22.28276381,217.66,217.6,1.5231]
[1736185388351,22.28276381,217.61,217.58,0.04492982]
[1736185388645,22.28276381,217.62,217.58,0.04492982]
[1736185390726,22.28276381,217.61,217.58,0.04492982]
[1736185391032,18.28276381,217.62,217.58,0.04492982]
[1736185391556,22.28276381,217.64,217.58,22.32769363]
[1736185391723,3.08,217.65,217.6,22.28276381]
[1736185392040,3.08,217.64,217.59,22.28276381]
[1736185392525,3.08,217.64,217.6,22.28276381]
[1736185392938,3.08,217.64,217.59,22.28276381]
[1736185393149,3.08,217.64,217.58,22.32769363]
[1736185393657,22.28276381,217.59,217.58,0.04492982]
[1736185394624,22.28276381,217.61,217.58,0.04492982]
[1736185394826,22.28276381,217.59,217.58,0.04492982]
[1736185403274,13.95220195,217.59,217.58,0.04492982]
[1736185403837,16.99220195,217.59,217.58,0.04492982]
[1736185405960,3.04,217.59,217.58,0.04492982]
[1736185406154,3.04,217.61,217.58,0.04492982]
[1736185406866,16.99220195,217.61,217.58,0.04492982]
[1736185407163,3.04,217.6,217.58,0.04492982]
[1736185407565,13.95220195,217.61,217.58,0.04492982]
[1736185407566,3.04,217.61,217.58,0.04492982]
[1736185407856,16.99220195,217.61,217.58,0.04492982]
[1736185408238,3.04,217.61,217.58,0.04492982]
[1736185408865,31.36950044,217.63,217.58,0.04492982]
[1736185409069,31.36950044,217.63,217.6,13.95220195]
[1736185409557,31.36950044,217.63,217.58,13.99713177]
[1736185410159,31.36950044,217.63,217.58,0.04492982]
[1736185410541,45.32170239,217.63,217.58,0.04492982]
[1736185410741,13.95220195,217.6,217.58,0.04492982]
[1736185412046,13.95220195,217.61,217.58,0.04492982]
[1736185412290,31.36950044,217.63,217.59,13.95220195]
[1736185412567,13.95220195,217.71,217.62,13.95220195]
[1736185412773,13.95220195,217.74,217.68,13.95220195]
[1736185412961,13.95220195,217.76,217.69,13.95220195]
[1736185413162,16.99220195,217.77,217.7,13.95220195]
[1736185413353,13.95220195,217.72,217.67,1.554]
[1736185413750,13.95220195,217.71,217.67,1.554]
[1736185413963,3.04,217.77,217.67,1.554]
[1736185413964,13.95220195,217.7,217.67,1.554]
[1736185414161,13.95220195,217.68,217.62,1.554]
[1736185414363,13.95220195,217.65,217.62,1.554]
[1736185414552,13.95220195,217.64,217.62,1.554]
[1736185414958,13.95220195,217.65,217.62,1.554]
[1736185415170,13.95220195,217.66,217.62,1.554]
[1736185415344,13.95220195,217.67,217.62,1.554]
[1736185415546,13.95220195,217.66,217.62,1.554]
[1736185415858,13.95220195,217.64,217.62,1.554]
[1736185416148,13.95220195,217.66,217.62,1.554]
[1736185416569,16.99220195,217.67,217.62,1.554]
[1736185417059,13.95220195,217.68,217.62,1.554]
[1736185417466,13.95220195,217.68,217.62,15.50620195]
[1736185417641,13.95220195,217.67,217.62,1.554]
[1736185418058,13.95220195,217.68,217.62,1.554]
[1736185418262,13.95220195,217.68,217.62,15.50620195]
[1736185418446,16.99220195,217.7,217.63,13.95220195]
[1736185418755,6.0219,217.79,217.68,13.95220195]
[1736185418756,13.95220195,217.74,217.68,13.95220195]
[1736185419573,13.95220195,217.72,217.66,13.95220195]
[1736185420466,13.95220195,217.73,217.66,13.95220195]
[1736185420975,13.95220195,217.74,217.67,13.95220195]
[1736185421174,13.95220195,217.74,217.63,11.4873]
[1736185421175,13.95220195,217.74,217.68,13.95220195]
[1736185421357,13.95220195,217.75,217.68,13.95220195]
[1736185421552,3.04,217.77,217.66,13.95220195]
[1736185421553,13.95220195,217.73,217.66,13.95220195]
[1736185421954,13.95220195,217.72,217.66,13.95220195]
[1736185422278,13.95220195,217.73,217.67,13.95220195]
[1736185422487,13.95220195,217.76,217.7,13.95220195]
[1736185422695,13.95220195,217.76,217.69,13.95220195]
[1736185422984,13.95220195,217.75,217.68,13.95220195]
[1736185423199,16.99220195,217.77,217.71,13.95220195]
[1736185423496,16.99220195,217.77,217.7,13.95220195]
[1736185423777,31.34726254,217.79,217.73,13.95220195]
[1736185424085,13.95220195,217.78,217.71,13.95220195]
[1736185424322,13.95220195,217.75,217.69,13.95220195]
[1736185424456,3.04,217.8,217.62,1.554]
[1736185424457,13.95220195,217.72,217.62,1.554]
[1736185424792,13.95220195,217.65,217.62,1.554]
[1736185424997,13.95220195,217.64,217.62,1.554]
[1736185425288,13.95220195,217.65,217.62,1.554]
[1736185425977,13.95220195,217.64,217.62,1.554]
[1736185426176,3.0,217.71,217.62,1.554]
[1736185426177,13.95220195,217.65,217.62,1.554]
[1736185426363,13.95220195,217.67,217.62,1.554]
[1736185426552,13.95220195,217.68,217.62,1.554]
[1736185426760,13.95220195,217.66,217.62,1.554]
[1736185426968,13.95220195,217.65,217.62,1.554]
[1736185427297,3.0,217.71,217.58,0.04492982]
[1736185427298,13.95220195,217.64,217.58,0.04492982]
[1736185427467,13.95220195,217.65,217.58,13.99713177]
[1736185427786,13.95220195,217.66,217.6,13.95220195]
[1736185428214,13.95220195,217.67,217.6,13.95220195]
[1736185428520,13.95220195,217.7,217.63,13.95220195]
[1736185428684,13.95220195,217.69,217.63,13.95220195]
[1736185428915,13.95220195,217.67,217.6,13.95220195]
[1736185429121,3.0,217.71,217.58,0.04492982]
[1736185429122,13.95220195,217.64,217.58,0.04492982]
[1736185429292,13.95220195,217.69,217.58,0.04492982]
[1736185429293,13.95220195,217.6,217.58,0.04492982]
[1736185429695,16.95220195,217.62,217.58,0.04492982]
[1736185429894,3.0,217.62,217.58,0.04492982]
[1736185430184,13.95220195,217.6,217.58,0.04492982]
[1736185430388,13.95220195,217.59,217.58,0.04492982]
[1736185432021,16.95220195,217.59,217.58,0.04492982]
[1736185432997,3.0,217.61,217.58,0.04492982]
[1736185433314,13.95220195,217.63,217.58,0.04492982]
[1736185433529,16.95220195,217.63,217.58,0.04492982]
[1736185434102,3.0,217.63,217.58,0.04492982]
[1736185434493,16.95220195,217.63,217.58,0.04492982]
[1736185434706,3.0,217.64,217.58,13.99713177]
[1736185434905,16.95220195,217.64,217.58,0.04492982]
[1736185435218,3.0,217.64,217.6,13.95220195]
[1736185435725,13.95220195,217.65,217.59,13.95220195]
[1736185435921,16.95220195,217.65,217.58,13.99713177]
[1736185436237,13.95220195,217.61,217.58,0.04492982]
[1736185436430,13.95220195,217.59,217.58,0.04492982]
[1736185437306,13.95220195,217.61,217.58,0.04492982]
[1736185437514,13.95220195,217.62,217.58,0.04492982]
[1736185437904,13.95220195,217.61,217.58,0.04492982]
[1736185438118,13.95220195,217.6,217.58,0.04492982]
[1736185439229,13.95220195,217.61,217.58,0.04492982]
[1736185439926,13.95220195,217.65,217.59,13.95220195]
[1736185440113,3.0,217.62,217.59,13.95220195]
[1736185440428,3.0,217.62,217.6,13.95220195]
[1736185440731,3.0,217.62,217.58,13.99713177]
[1736185440907,3.0,217.66,217.61,13.95220195]
[1736185441107,3.0,217.66,217.63,13.95220195]
[1736185441300,45.3144099,217.68,217.61,13.95220195]
[1736185441500,31.36220795,217.68,217.62,13.95220195]
[1736185441718,3.0,217.67,217.61,13.95220195]
[1736185441913,3.0,217.67,217.62,13.95220195]
[1736185442201,3.0,217.67,217.63,13.95220195]
[1736185442545,31.36220795,217.68,217.65,13.95220195]
[1736185442703,31.36220795,217.68,217.64,13.95220195]
[1736185442899,31.36220795,217.68,217.63,13.95220195]
[1736185443418,31.36220795,217.68,217.65,13.95220195]
[1736185443728,31.36220795,217.68,217.67,13.95220195]
[1736185444700,3.0,217.75,217.67,13.95220195]
[1736185445034,3.0,217.75,217.7,13.95220195]
[1736185446004,3.0,217.75,217.71,13.95220195]
[1736185446205,3.0,217.75,217.68,1.618]
[1736185446206,13.95220195,217.81,217.74,13.95220195]
[1736185446405,3.0,217.8,217.75,13.95220195]
[1736185446708,3.0,217.8,217.73,13.95220195]
[1736185446709,13.95220195,217.79,217.73,13.95220195]
[1736185446902,3.0,217.8,217.74,13.95220195]
[1736185447320,3.0,217.8,217.75,13.95220195]
[1736185447828,3.0,217.8,217.76,13.95220195]
[1736185448235,31.3385348,217.84,217.78,13.95220195]
[1736185448442,31.3385348,217.84,217.82,13.95220195]
[1736185449222,16.95220195,217.9,217.83,13.95220195]
[1736185449622,3.0,217.9,217.84,13.95220195]
[1736185449837,3.0,217.91,217.85,13.95220195]
[1736185450139,11.4682,218.0,217.89,13.95220195]
[1736185450140,16.95220195,217.96,217.89,13.95220195]
[1736185450340,3.0,217.96,217.9,13.95220195]
[1736185450627,13.95220195,217.94,217.87,13.95220195]
[1736185450836,13.95220195,217.88,217.81,13.95220195]
[1736185451009,0.25098,217.97,217.8,20.01950195]
[1736185451212,13.95220195,217.86,217.8,20.01950195]
[1736185451427,3.0,217.88,217.82,13.95220195]
[1736185451633,13.95220195,217.88,217.81,13.95220195]
[1736185451834,13.95220195,217.87,217.8,20.01950195]
[1736185452119,13.95220195,217.86,217.8,6.0673]
[1736185452335,13.95220195,217.88,217.81,13.95220195]
[1736185452821,13.95220195,217.88,217.82,13.95220195]
[1736185453024,3.0,217.91,217.83,13.95220195]
[1736185453025,13.95220195,217.9,217.83,13.95220195]
[1736185453636,13.95220195,217.87,217.81,13.95220195]
[1736185453941,13.95220195,217.85,217.79,15.56030195]
[1736185454109,13.95220195,217.85,217.79,1.6081]
[1736185455039,13.95220195,217.86,217.79,15.56030195]
[1736185455414,13.95220195,217.85,217.79,1.6081]
[1736185456119,13.95220195,217.87,217.8,13.95220195]
[1736185456333,13.95220195,217.87,217.79,1.6081]
[1736185456334,13.95220195,217.88,217.82,13.95220195]
[1736185456934,13.95220195,217.89,217.82,13.95220195]
[1736185457142,16.85220195,217.9,217.83,13.95220195]
[1736185457831,2.9,217.91,217.85,13.95220195]
[1736185458144,2.9,217.91,217.86,13.95220195]
[1736185458344,2.9,217.94,217.89,13.95220195]
[1736185458544,2.9,217.94,217.9,13.95220195]
[1736185458844,16.85220195,217.96,217.9,13.95220195]
[1736185459360,2.9,217.96,217.9,13.95220195]
[1736185459539,13.95220195,217.94,217.88,13.95220195]
[1736185459735,13.95220195,217.91,217.84,13.95220195]
[1736185460113,13.95220195,217.91,217.85,13.95220195]
[1736185460425,2.9,217.96,217.88,13.95220195]
[1736185460426,13.95220195,217.94,217.88,13.95220195]
[1736185460614,16.85220195,217.94,217.87,13.95220195]
[1736185460814,13.95220195,217.93,217.87,13.95220195]
[1736185461037,25.15005587,217.94,217.88,22.25005587]
[1736185461247,2.9,217.94,217.88,22.25005587]
[1736185461716,2.9,217.94,217.9,22.25005587]
[1736185462625,53.57185245,217.97,217.9,22.25005587]
[1736185462829,31.32179658,217.97,217.93,22.25005587]
[1736185463124,22.25005587,217.94,217.87,1.6355]
[1736185463332,22.25005587,217.92,217.87,1.6355]
[1736185463533,31.32179658,217.97,217.83,22.25005587]
[1736185463534,22.25005587,217.9,217.83,22.25005587]
[1736185463727,42.79129658,217.97,217.82,1.6355]
[1736185463728,0.12549,217.96,217.82,1.6355]
[1736185463941,22.25005587,217.87,217.82,1.6355]
[1736185464261,25.15005587,217.88,217.82,1.6355]
[1736185464418,0.12549,217.96,217.82,1.6355]
[1736185464419,22.25005587,217.87,217.82,1.6355]
[1736185464624,22.25005587,217.84,217.77,30.06485587]
[1736185465445,22.25005587,217.84,217.77,23.75585587]
[1736185465859,22.25005587,217.86,217.8,22.25005587]
[1736185466064,22.25005587,217.85,217.78,22.25005587]
[1736185467265,25.15005587,217.87,217.8,22.25005587]
[1736185467447,2.9,217.87,217.81,22.25005587]
[1736185468257,2.9,217.87,217.82,22.25005587]
[1736185468483,25.15005587,217.88,217.81,22.25005587]
[1736185469275,22.25005587,217.93,217.86,22.25005587]
[1736185469432,2.9,217.91,217.83,22.25005587]
[1736185469636,22.25005587,217.87,217.8,22.25005587]
[1736185469962,22.25005587,217.85,217.79,22.25005587]
[1736185470265,22.25005587,217.87,217.8,22.25005587]
[1736185470766,22.25005587,217.88,217.81,22.25005587]
[1736185471260,22.25005587,217.89,217.82,22.25005587]
[1736185471563,22.25005587,217.9,217.83,22.25005587]
[1736185471951,25.15005587,217.9,217.83,22.25005587]
[1736185473044,22.25005587,217.89,217.82,22.25005587]
[1736185474150,2.9,217.9,217.84,22.25005587]
[1736185474368,2.9,217.9,217.8,11.478]
[1736185474369,22.25005587,217.94,217.87,22.25005587]
[1736185474671,25.15005587,217.96,217.89,22.25005587]
[1736185474879,31.32179658,217.97,217.9,22.25005587]
[1736185474880,53.57185245,217.97,217.9,22.25005587]
[1736185475074,31.32179658,217.97,217.91,22.25005587]
[1736185475260,2.9,217.96,217.91,22.25005587]
[1736185475843,2.9,217.96,217.92,22.25005587]
[1736185476043,2.9,217.96,217.93,22.25005587]
[1736185476241,31.32179658,217.97,217.94,22.25005587]
[1736185476455,31.32179658,217.97,217.96,22.25005587]
[1736185477273,22.25005587,218.06,217.96,22.25005587]
[1736185477575,22.25005587,218.06,217.94,6.4842]
[1736185477576,22.25005587,218.08,218.01,22.25005587]
[1736185477761,22.25005587,218.06,217.99,22.25005587]
[1736185478066,22.25005587,218.03,217.97,1.5332]
[1736185478566,22.52549,218.09,217.99,22.25005587]
[1736185478743,22.25005587,218.06,217.99,22.25005587]
[1736185479069,22.25005587,218.05,217.98,22.25005587]
[1736185479380,25.15005587,218.07,218.0,22.25005587]
[1736185479543,2.9,218.07,218.01,22.25005587]
[1736185479867,25.15005587,218.07,218.0,22.25005587]
[1736185480056,22.25005587,218.04,217.97,23.78325587]
[1736185480370,22.25005587,218.0,217.93,22.25005587]
[1736185480667,22.25005587,218.0,217.94,22.25005587]
[1736185480884,22.25005587,218.01,217.94,22.25005587]
[1736185481044,22.25005587,218.02,217.95,22.25005587]
[1736185481240,22.25005587,218.03,217.97,22.25005587]
[1736185481454,22.25005587,218.04,217.98,22.25005587]
[1736185481782,25.15005587,218.06,217.99,22.25005587]
[1736185482074,25.15005587,218.06,217.93,0.68800538]
[1736185482075,2.9,218.06,218.01,22.25005587]
[1736185482584,2.9,218.06,218.04,22.25005587]
[1736185482764,22.25005587,218.11,218.04,22.25005587]
[1736185483149,13.8840491,218.11,218.04,13.8840491]
[1736185483468,13.8840491,218.1,218.04,13.8840491]
[1736185483778,13.8840491,218.08,218.01,15.4318491]
[1736185484149,13.8840491,218.07,218.01,15.4318491]
[1736185484573,13.8840491,218.07,218.01,1.5478]
[1736185484868,13.8840491,218.07,218.01,15.4318491]
[1736185485060,22.22347348,218.07,218.01,1.5478]
[1736185485266,20.0,218.1,218.02,22.22347348]
[1736185485467,22.22347348,218.08,218.02,22.22347348]
[1736185485676,22.22347348,218.08,218.01,23.77127348]
[1736185485873,22.22347348,218.1,218.03,22.22347348]
[1736185486169,22.22347348,218.11,218.05,22.22347348]
[1736185486470,22.22347348,218.12,218.05,22.22347348]
[1736185486888,22.22347348,218.12,218.01,1.5478]
[1736185487062,22.22347348,218.13,218.06,22.22347348]
[1736185487365,25.02347348,218.14,218.07,22.22347348]
[1736185487756,22.22347348,218.13,218.06,22.22347348]
[1736185487958,22.34896348,218.12,218.01,1.5478]
[1736185488161,22.22347348,218.09,218.03,22.22347348]
[1736185488361,22.22347348,218.11,218.04,22.22347348]
[1736185488570,22.22347348,218.12,218.05,22.22347348]
[1736185489063,22.22347348,218.13,218.06,22.22347348]
[1736185489266,22.34896348,218.14,218.07,22.22347348]
[1736185489576,25.02347348,218.16,218.09,22.22347348]
[1736185489769,25.02347348,218.17,218.1,22.22347348]
[1736185490282,22.22347348,218.15,218.08,22.22347348]
[1736185490585,22.22347348,218.14,218.07,22.22347348]
[1736185491580,22.22347348,218.13,218.06,22.22347348]
[1736185491786,22.22347348,218.12,218.06,22.22347348]
[1736185491956,22.22347348,218.14,218.07,22.22347348]
[1736185492289,22.22347348,218.14,218.08,22.22347348]
[1736185493174,22.22347348,218.11,218.05,22.22347348]
[1736185493369,22.22347348,218.11,218.04,22.22347348]
[1736185493571,22.22347348,218.11,218.05,22.22347348]
[1736185493767,2.8,218.16,218.01,23.77127348]
[1736185493768,22.22347348,218.08,218.01,23.77127348]
[1736185493956,22.22347348,218.04,217.97,22.22347348]
[1736185494481,22.22347348,218.04,217.98,22.22347348]
[1736185494692,22.22347348,218.05,217.98,22.22347348]
[1736185494987,22.22347348,218.04,217.97,22.22347348]
[1736185495164,22.22347348,218.05,217.98,22.22347348]
[1736185495576,22.22347348,218.07,218.02,20.0]
[1736185495777,25.02347348,218.11,218.04,22.22347348]
[1736185495977,22.22347348,218.11,218.04,22.22347348]
[1736185496907,22.22347348,218.11,218.05,22.22347348]
[1736185497287,22.22347348,218.08,218.01,33.69037348]
[1736185497581,22.22347348,218.07,218.01,33.69037348]
[1736185497985,22.22347348,218.08,218.01,33.69037348]
[1736185498297,22.34896348,218.11,218.04,22.22347348]
[1736185498475,22.22347348,218.1,218.03,22.22347348]
[1736185499593,22.22347348,218.11,218.03,22.22347348]
[1736185499775,22.22347348,218.11,218.04,22.22347348]
[1736185500274,22.22347348,218.1,218.03,22.22347348]
[1736185500798,22.22347348,218.07,217.99,22.22347348]
[1736185501095,22.22347348,218.01,217.95,1.5266]
[1736185501279,22.22347348,217.98,217.92,11.4719]
[1736185501662,22.22347348,217.97,217.9,22.22347348]
[1736185501871,22.22347348,217.98,217.91,22.22347348]
[1736185502466,22.22347348,217.96,217.89,35.33847348]
[1736185502792,22.22347348,218.0,217.93,22.22347348]
[1736185502970,22.22347348,218.0,217.89,13.115]
[1736185502971,22.22347348,218.01,217.94,22.22347348]
[1736185503794,2.8,218.02,217.96,22.22347348]
[1736185504199,25.02347348,218.02,217.95,22.22347348]
[1736185504501,22.22347348,218.07,218.0,22.22347348]
[1736185504713,22.22347348,218.06,217.99,22.22347348]
[1736185504899,22.22347348,218.05,217.99,22.22347348]
[1736185505198,22.22347348,218.05,217.98,22.22347348]
[1736185505406,2.8,218.07,217.92,35.248884]
[1736185505407,22.22347348,218.03,217.96,22.22347348]
[1736185506278,2.8,218.07,217.95,33.69377348]
[1736185506279,22.22347348,218.02,217.95,33.69377348]
[1736185506473,22.22347348,217.98,217.91,33.69567348]
[1736185506701,22.22347348,217.97,217.91,11.4722]
[1736185506875,22.22347348,217.96,217.89,23.86487348]
[1736185507576,22.22347348,217.97,217.9,22.22347348]
[1736185507799,22.22347348,217.97,217.89,1.6414]
[1736185507800,22.22347348,217.99,217.92,22.22347348]
[1736185508186,22.22347348,218.01,217.94,22.22347348]
[1736185508384,22.22347348,218.01,217.92,11.472]
[1736185508385,22.22347348,218.0,217.93,22.22347348]
[1736185508583,22.34896348,217.99,217.92,22.22347348]
[1736185508808,22.22347348,217.97,217.9,22.22347348]
[1736185509910,0.12549,218.01,217.88,33.69747348]
[1736185509911,22.22347348,217.95,217.88,33.69747348]
[1736185510210,22.22347348,217.93,217.86,22.22347348]
[1736185510704,22.22347348,217.92,217.85,22.22347348]
[1736185510913,35.369674,218.01,217.84,13.0406]
[1736185510914,22.22347348,217.9,217.84,13.0406]
[1736185511082,22.22347348,217.88,217.81,22.22347348]
[1736185511280,2.8,217.91,217.8,33.70137348]
[1736185511281,22.22347348,217.87,217.8,33.70137348]
[1736185511788,22.22347348,217.87,217.8,22.22347348]
[1736185511981,22.22347348,217.85,217.79,23.78827348]
[1736185512311,22.22347348,217.84,217.77,22.22347348]
[1736185512483,22.22347348,217.83,217.77,22.22347348]
[1736185512682,22.22347348,217.82,217.75,22.22347348]
[1736185513013,6.0744,217.88,217.74,22.22347348]
[1736185513014,24.90347348,217.81,217.74,22.22347348]
[1736185513211,2.68,217.81,217.75,22.22347348]
[1736185513520,2.68,217.81,217.76,22.22347348]
[1736185513717,2.68,217.81,217.75,22.22347348]
[1736185513894,24.90347348,217.81,217.74,22.22347348]
[1736185514605,2.68,217.81,217.75,22.22347348]
[1736185515120,24.90347348,217.81,217.74,22.22347348]
[1736185516493,2.68,217.81,217.75,22.22347348]
[1736185516708,22.22347348,217.85,217.78,22.22347348]
[1736185516890,2.68,217.84,217.78,22.22347348]
[1736185517213,24.90347348,217.84,217.77,22.22347348]
[1736185517420,22.22347348,217.83,217.76,22.22347348]
[1736185517586,22.22347348,217.82,217.75,22.22347348]
[1736185517786,22.22347348,217.81,217.74,22.22347348]
[1736185518095,22.22347348,217.75,217.68,23.76987348]
[1736185518297,22.22347348,217.75,217.7,22.22347348]
[1736185518298,2.68,217.75,217.7,22.22347348]
[1736185519190,2.68,217.76,217.7,22.22347348]
[1736185519392,24.90347348,217.76,217.7,22.22347348]
[1736185519909,2.68,217.76,217.7,22.22347348]
[1736185520313,2.68,217.76,217.72,22.22347348]
[1736185520516,2.68,217.76,217.71,22.22347348]
[1736185520699,2.68,217.76,217.7,22.22347348]
[1736185521220,2.68,217.76,217.71,22.22347348]
[1736185521410,2.68,217.76,217.7,22.22347348]
[1736185521606,22.22347348,217.75,217.69,22.22347348]
[1736185521801,22.22347348,217.74,217.67,22.22347348]
[1736185521995,22.22347348,217.73,217.66,22.22347348]
[1736185522428,22.22347348,217.71,217.65,33.70937348]
[1736185522598,22.22347348,217.7,217.63,23.72927348]
[1736185522797,22.22347348,217.69,217.62,22.22347348]
[1736185524229,22.22347348,217.71,217.64,22.22347348]
[1736185524397,2.68,217.71,217.68,22.22347348]
[1736185524599,2.68,217.71,217.59,34.4683]
[1736185524600,2.68,217.71,217.66,22.22347348]
[1736185525106,2.68,217.71,217.65,22.22347348]
[1736185525307,2.68,217.71,217.66,22.22347348]
[1736185525528,2.68,217.71,217.68,22.22347348]
[1736185525824,2.68,217.71,217.67,22.22347348]
[1736185526196,22.22347348,217.74,217.67,22.22347348]
[1736185526398,2.68,217.72,217.67,22.22347348]
[1736185526831,31.35106007,217.76,217.71,22.22347348]
[1736185527011,31.35106007,217.76,217.73,22.22347348]
[1736185527321,31.35106007,217.76,217.72,22.22347348]
[1736185527498,31.35106007,217.76,217.7,22.22347348]
[1736185527692,31.35106007,217.76,217.71,22.22347348]
[1736185527893,31.35106007,217.76,217.72,22.22347348]
[1736185528396,22.22347348,217.75,217.69,22.22347348]
[1736185528599,22.22347348,217.73,217.67,22.22347348]
[1736185528814,31.35106007,217.76,217.65,33.70927348]
[1736185528815,22.22347348,217.72,217.65,33.70927348]
[1736185528998,22.22347348,217.71,217.65,33.70927348]
[1736185529199,22.22347348,217.71,217.64,22.22347348]
[1736185529800,22.22347348,217.72,217.65,22.22347348]
[1736185530398,22.22347348,217.72,217.66,22.22347348]
[1736185530825,22.22347348,217.71,217.65,22.22347348]
[1736185532019,22.22347348,217.72,217.66,22.22347348]
[1736185532725,22.22347348,217.72,217.65,22.22347348]
[1736185533329,22.22347348,217.74,217.67,22.22347348]
[1736185533501,2.68,217.73,217.69,22.22347348]
[1736185533823,31.35106007,217.76,217.71,22.22347348]
[1736185534127,34.03106007,217.76,217.72,22.22347348]
[1736185534442,34.03106007,217.76,217.71,22.22347348]
[1736185534929,34.03106007,217.76,217.7,22.22347348]
[1736185535102,34.03106007,217.76,217.71,22.22347348]
[1736185535514,34.03106007,217.76,217.7,22.22347348]
[1736185536314,34.03106007,217.76,217.66,22.22347348]
[1736185536315,22.22347348,217.73,217.66,22.22347348]
[1736185536512,22.22347348,217.74,217.67,22.22347348]
[1736185536715,22.22347348,217.75,217.68,22.22347348]
[1736185537710,56.25453355,217.76,217.69,22.22347348]
[1736185538103,22.22347348,217.75,217.69,22.22347348]
[1736185538526,22.22347348,217.71,217.64,33.70977348]
[1736185538831,22.22347348,217.7,217.63,22.22347348]
[1736185539133,6.2543,217.74,217.64,22.22347348]
[1736185539134,22.22347348,217.71,217.64,22.22347348]
[1736185539536,22.22347348,217.71,217.65,22.22347348]
[1736185539838,2.68,217.7,217.66,22.22347348]
[1736185540339,2.68,217.7,217.65,22.22347348]
[1736185541138,2.68,217.7,217.66,22.22347348]
[1736185541339,2.68,217.7,217.67,22.22347348]
[1736185541732,22.22347348,217.73,217.67,22.22347348]
[1736185542042,6.2543,217.74,217.67,22.22347348]
[1736185542043,2.68,217.72,217.67,22.22347348]